{"text_format":"1","workbook":"xlsx","n_sheets":1,"sheets":["Лист1"],"not_rendered":{"charts":0,"images":0,"macros":0,"external_links":0,"defined_names":0,"comments":0,"pivot_tables":0},"unopened":[],"bounds":{"document_bytes":16777216,"sheet_cells":100000,"rows_first":2000,"rows_last":500,"rows_between":2000,"halvings":0,"cell_chars":16384,"cell_head_chars":4096},"cells_cut":0,"cells_raw":0,"read":"whole","date_system":"1900"}

{"sheet":"Лист1","index":0,"n_rows":23,"n_cols":7,"rows_kept":23,"cut":false,"hidden":false,"merged":[]}
[1,null,null,{"$f":"INDEX(A:A,ROW()*2-1)&\"_\"&INDEX(B:B,ROW()*2)","v":"1_2"},{"$f":"INDEX(A:A,ROW()*2-1)&INDEX(B:B,ROW()*2)","v":"12"},null,{"$f":"--(A1&B1)","v":1}]
[null,2,null,{"$f":"INDEX(A:A,ROW()*2-1)&\"_\"&INDEX(B:B,ROW()*2)","v":"2_3"},{"$f":"INDEX(A:A,ROW()*2-1)&INDEX(B:B,ROW()*2)","v":"23"},null,{"$f":"--(A2&B2)","v":2}]
[2,null,null,"3_4","34",null,2]
[null,3,null,"4_5","45",null,3]
[3,null,null,"5_6","56",null,3]
[null,4,null,"6_7","67",null,4]
[4,null,null,"7_8","78",null,4]
[null,5,null,"8_9","89",null,5]
[5,null,null,"_","",null,5]
[null,6,null,"_","",null,6]
[6,null,null,"_","",null,6]
[null,7,null,"_","",null,7]
[7,null,null,"_","",null,7]
[null,8,null,"_","",null,8]
[8,null,null,"_","",null,8]
[null,9,null,"_","",null,9]
[null,null,null,"_","",null,{"$error":"#VALUE!"}]
[null,null,null,null,null,null,{"$error":"#VALUE!"}]
[null,null,null,null,null,null,{"$error":"#VALUE!"}]
[null,null,null,null,null,null,{"$error":"#VALUE!"}]
[null,null,null,null,null,null,{"$error":"#VALUE!"}]
[null,null,null,null,null,null,{"$error":"#VALUE!"}]
[null,null,null,null,null,null,{"$error":"#VALUE!"}]